Workbook

Sheet Arkusz1
A1: p | B1: 0.5
A2: n | B2: 10
I4: =15*0.6 -> 9
B5: k | C5: P(k)
B6: 0 | C6: =_xlfn.BINOM.DIST(B6,$B$2,$B$1,0) -> 0.0009765625
B7: 1 | C7: =_xlfn.BINOM.DIST(B7,$B$2,$B$1,0) -> 0.009765625
B8: 2 | C8: 0.0439453125
B9: 3 | C9: 0.1171875
B10: 4 | C10: 0.205078125
B11: 5 | C11: 0.24609375
B12: 6 | C12: 0.205078125
B13: 7 | C13: 0.1171875
B14: 8 | C14: 0.0439453125
B15: 9 | C15: 0.009765625
B16: 10 | C16: 0.0009765625

Sheet Arkusz2
A1: sigma | B1: 0.2
A2: mi | B2: 0
B4: x | C4: f(x)
B5: -3 | C5: =_xlfn.NORM.DIST(B5,$B$2,$B$1,0) -> 2.765354775e-49
B6: -2.9 | C6: =_xlfn.NORM.DIST(B6,$B$2,$B$1,0) -> 4.412377487e-46
B7: -2.8 | C7: 5.483032797e-43
B8: -2.7 | C8: 5.30634407e-40
B9: -2.6 | C9: 3.999413879e-37
B10: -2.5 | C10: 2.347597679e-34
B11: -2.4 | C11: 1.073191868e-31
B12: -2.3 | C12: 3.820827706e-29
B13: -2.2 | C13: 1.059409627e-26
B14: -2.1 | C14: 2.287687795e-24
B15: -2 | C15: 3.847299313e-22
B16: -1.9 | C16: 5.038967697e-20
B17: -1.8 | C17: 5.139886786e-18
B18: -1.7 | C18: 4.083117816e-16
B19: -1.6 | C19: 2.526135542e-14
B20: -1.5 | C20: 1.217160267e-12
B21: -1.4 | C21: 4.567360204e-11
B22: -1.3 | C22: 1.334778307e-09
B23: -1.2 | C23: 3.037941425e-08
B24: -1.1 | C24: 5.384880021e-07
B25: -1 | C25: 7.433597574e-06
B26: -0.9 | C26: 7.991870553e-05
B27: -0.8 | C27: 0.0006691511288
B28: -0.7 | C28: 0.004363413475
B29: -0.6 | C29: 0.02215924206
B30: -0.5 | C30: 0.08764150247
B31: -0.4 | C31: 0.2699548326
B32: -0.3 | C32: 0.6475879783
B33: -0.2 | C33: 1.209853623
B34: -0.1 | C34: 1.760326634
B35: 0 | C35: 1.994711402
B36: 0.1 | C36: 1.760326634
B37: 0.2 | C37: 1.209853623
B38: 0.3 | C38: 0.6475879783
B39: 0.4 | C39: 0.2699548326
B40: 0.5 | C40: 0.08764150247
B41: 0.6 | C41: 0.02215924206
B42: 0.7 | C42: 0.004363413475
B43: 0.8 | C43: 0.0006691511288
B44: 0.9 | C44: 7.991870553e-05
B45: 1 | C45: 7.433597574e-06
B46: 1.1 | C46: 5.384880021e-07
B47: 1.2 | C47: 3.037941425e-08
B48: 1.3 | C48: 1.334778307e-09
B49: 1.4 | C49: 4.567360204e-11
B50: 1.5 | C50: 1.217160267e-12
B51: 1.6 | C51: 2.526135542e-14
B52: 1.7 | C52: 4.083117816e-16
B53: 1.8 | C53: 5.139886786e-18
B54: 1.9 | C54: 5.038967697e-20
B55: 2 | C55: 3.847299313e-22
B56: 2.1 | C56: 2.287687795e-24
B57: 2.2 | C57: 1.059409627e-26
B58: 2.3 | C58: 3.820827706e-29
B59: 2.4 | C59: 1.073191868e-31
B60: 2.5 | C60: 2.347597679e-34
B61: 2.6 | C61: 3.999413879e-37
B62: 2.7 | C62: 5.30634407e-40
B63: 2.8 | C63: 5.483032797e-43
B64: 2.9 | C64: 4.412377487e-46
B65: 3 | C65: 2.765354775e-49

Sheet Arkusz3
B2: 0 | C2: =B2-$F$3 -> -5.714285714 | D2: 0.1 | F2: =DEVSQ(B2:B8) -> 119.4285714
B3: 2 | C3: =B3-$F$3 -> -3.714285714 | D3: 0.2 | F3: =SUM(B2:B8)/7 -> 5.714285714
B4: 3 | C4: -2.714285714 | D4: 0.1
B5: 6 | C5: 0.2857142857 | D5: 0.4 | F5: =SUMPRODUCT(C2:C8,C2:C8) -> 119.4285714
B6: 7 | C6: 1.285714286 | D6: 0.1
B7: 9 | C7: 3.285714286 | D7: 0.05
B8: 13 | C8: 7.285714286 | D8: 0.05 | P8: =13/28 -> 0.4642857143
D9: =SUM(D2:D8) -> 1 | P9: =7/22 -> 0.3181818182
O13: =2*(3^0.5+4)/3 -> 3.821367205
O14: =3*2^0.5 -> 4.242640687

Sheet NPP_I=0p01A
A1: % Time (s) | B1: log(t) | C1: -calka_x(E) (V) | E1: Zp | F1: -Zb
A2: 1e-09 | B2: -20.72326584 | C2: -6.295258072e-07 | E2: 47.01429055 | F2: 0.05603434804
A3: 1.260503023e-09 | B3: -20.49175497 | C3: -2.724265371e-05 | E3: 47.00961827 | F3: 0.07402137537
A4: 1.584893192e-09 | B4: -20.26274882 | C4: -8.33886154e-05 | E4: 47.00153677 | F4: 0.0970984433
A5: 1.993077142e-09 | B5: -20.03358609 | C5: -0.0001770970001 | E5: 46.98782705 | F5: 0.12586487
A6: 2.511886432e-09 | B6: -19.8022318 | C6: -0.0003245607034 | E6: 46.96528516 | F6: 0.1599810039
A7: 3.16227766e-09 | B7: -19.57197329 | C7: -0.0005451464632 | E7: 46.93000411 | F7: 0.1970544887
A8: 3.981071706e-09 | B8: -19.34171478 | C8: -0.0008692901935 | E8: 46.87890425 | F8: 0.2313484961
A9: 5.011872336e-09 | B9: -19.11145627 | C9: -0.001338030856 | E9: 46.81314321 | F9: 0.2540682705
A10: 6.309573445e-09 | B10: -18.88119776 | C10: -0.00200743905 | E10: 46.74083819 | F10: 0.2578517411
A11: 7.943282347e-09 | B11: -18.65093925 | C11: -0.002952923323 | E11: 46.67379165 | F11: 0.2432343478
A12: 1e-08 | B12: -18.42068074 | C12: -0.004273048434 | E12: 46.6180881 | F12: 0.2171377574
A13: 1.258925412e-08 | B13: -18.19042223 | C13: -0.006091538889 | E13: 46.57682297 | F13: 0.1849641927
A14: 1.584893192e-08 | B14: -17.96016373 | C14: -0.008557206222 | E14: 46.55031348 | F14: 0.1565432869
A15: 1.995262315e-08 | B15: -17.72990522 | C15: -0.01183267569 | E15: 46.52949741 | F15: 0.1358317383
A16: 2.511886432e-08 | B16: -17.49964671 | C16: -0.01606966142 | E16: 46.51055513 | F16: 0.1188041069
A17: 3.16227766e-08 | B17: -17.2693882 | C17: -0.02136918853 | E17: 46.49481455 | F17: 0.1012084308
A18: 3.981071706e-08 | B18: -17.03912969 | C18: -0.02772443178 | E18: 46.48706749 | F18: 0.08933955795
A19: 5.011872336e-08 | B19: -16.80887118 | C19: -0.03497344076 | E19: 46.473927 | F19: 0.0887687998
A20: 6.309573445e-08 | B20: -16.57861267 | C20: -0.04278801308 | E20: 46.45742635 | F20: 0.07906158156
A21: 7.943282347e-08 | B21: -16.34835416 | C21: -0.05074774139 | E21: 46.44502567 | F21: 0.06984480682
A22: 1e-07 | B22: -16.11809565 | C22: -0.05840779671 | E22: 46.43957688 | F22: 0.06352327252
A23: 1.258925412e-07 | B23: -15.88783714 | C23: -0.06539465995 | E23: 46.42890349 | F23: 0.06741750044
A24: 1.584893192e-07 | B24: -15.65757863 | C24: -0.07148392586 | E24: 46.41908399 | F24: 0.06278224943
A25: 1.995262315e-07 | B25: -15.42732012 | C25: -0.07660486179 | E25: 46.40787028 | F25: 0.06069754717
A26: 2.511886432e-07 | B26: -15.19706161 | C26: -0.08086469087 | E26: 46.40099457 | F26: 0.06100241577
A27: 3.16227766e-07 | B27: -14.9668031 | C27: -0.08449412627 | E27: 46.39112536 | F27: 0.06609273745
A28: 3.981071706e-07 | B28: -14.7365446 | C28: -0.08771174679 | E28: 46.38045662 | F28: 0.06785664384
A29: 5.011872336e-07 | B29: -14.50628609 | C29: -0.09064396886 | E29: 46.36902303 | F29: 0.07090516658
A30: 6.309573445e-07 | B30: -14.27602758 | C30: -0.09339331904 | E30: 46.35893317 | F30: 0.07577997882
A31: 7.943282347e-07 | B31: -14.04576907 | C31: -0.09599475523 | E31: 46.34620925 | F31: 0.08335671496
A32: 1e-06 | B32: -13.81551056 | C32: -0.0984531425 | E32: 46.33212919 | F32: 0.09011589358
A33: 1.258925412e-06 | B33: -13.58525205 | C33: -0.1006749416 | E33: 46.31650063 | F33: 0.09790806593
A34: 1.584893192e-06 | B34: -13.35499354 | C34: -0.1026900311 | E34: 46.30037998 | F34: 0.1073078984
A35: 1.995262315e-06 | B35: -13.12473503 | C35: -0.1045671604 | E35: 46.28193064 | F35: 0.1188431254
A36: 2.511886432e-06 | B36: -12.89447652 | C36: -0.1062638964 | E36: 46.26107072 | F36: 0.1306522245
A37: 3.16227766e-06 | B37: -12.66421801 | C37: -0.1078618085 | E37: 46.23731865 | F37: 0.1431170584
A38: 3.981071706e-06 | B38: -12.4339595 | C38: -0.109421039 | E38: 46.21250856 | F38: 0.1567094906
A39: 5.011872336e-06 | B39: -12.20370099 | C39: -0.1111326741 | E39: 46.1852303 | F39: 0.1730444228
A40: 6.309573445e-06 | B40: -11.97344248 | C40: -0.1129567854 | E40: 46.15358981 | F40: 0.1898707001
A41: 7.943282347e-06 | B41: -11.74318397 | C41: -0.1148476702 | E41: 46.1184381 | F41: 0.2066870335
A42: 1e-05 | B42: -11.51292546 | C42: -0.1168202267 | E42: 46.08281012 | F42: 0.2241743035
A43: 1.258925412e-05 | B43: -11.28266696 | C43: -0.1188478745 | E43: 46.04362019 | F43: 0.2466399717
A44: 1.584893192e-05 | B44: -11.05240845 | C44: -0.1209125781 | E44: 45.99812105 | F44: 0.2687661917
A45: 1.995262315e-05 | B45: -10.82214994 | C45: -0.1229788497 | E45: 45.94963221 | F45: 0.2902894644
A46: 2.511886432e-05 | B46: -10.59189143 | C46: -0.1251090056 | E46: 45.90247324 | F46: 0.314398868
A47: 3.16227766e-05 | B47: -10.36163292 | C47: -0.1271850589 | E47: 45.84802901 | F47: 0.3473452785
A48: 3.981071706e-05 | B48: -10.13137441 | C48: -0.1291590412 | E48: 45.78692877 | F48: 0.379046595
A49: 5.011872336e-05 | B49: -9.9011159 | C49: -0.1310143552 | E49: 45.7230221 | F49: 0.4116371352
A50: 6.309573445e-05 | B50: -9.670857391 | C50: -0.1328404509 | E50: 45.65999847 | F50: 0.4534807557
A51: 7.943282347e-05 | B51: -9.440598881 | C51: -0.1345236801 | E51: 45.58444988 | F51: 0.5089370703
A52: 0.0001 | B52: -9.210340372 | C52: -0.1360269725 | E52: 45.49834229 | F52: 0.5647228853
A53: 0.0001258925412 | B53: -8.980081863 | C53: -0.1373492123 | E53: 45.4061028 | F53: 0.6272152716
A54: 0.0001584893192 | B54: -8.749823353 | C54: -0.1385091297 | E54: 45.30500638 | F54: 0.7076694926
A55: 0.0001995262315 | B55: -8.519564844 | C55: -0.139595758 | E55: 45.17932672 | F55: 0.8037557708
A56: 0.0002511886432 | B56: -8.289306335 | C56: -0.140533174 | E56: 45.02892063 | F56: 0.8974905053
A57: 0.000316227766 | B57: -8.059047825 | C57: -0.1413340056 | E57: 44.85991317 | F57: 0.997079388
A58: 0.0003981071706 | B58: -7.828789316 | C58: -0.1420206017 | E58: 44.665472 | F58: 1.104373323
A59: 0.0005011872336 | B59: -7.598530807 | C59: -0.1426446564 | E59: 44.4316836 | F59: 1.21003034
A60: 0.0006309573445 | B60: -7.368272298 | C60: -0.1432470249 | E60: 44.17340031 | F60: 1.282196812
A61: 0.0007943282347 | B61: -7.138013788 | C61: -0.1437875795 | E61: 43.90892789 | F61: 1.345398021
A62: 0.001 | B62: -6.907755279 | C62: -0.14428475 | E62: 43.63103118 | F62: 1.394336656
A63: 0.001258925412 | B63: -6.67749677 | C63: -0.1447410318 | E63: 43.33131324 | F63: 1.427771859
A64: 0.001584893192 | B64: -6.44723826 | C64: -0.1451867104 | E64: 43.04183338 | F64: 1.414512111
A65: 0.001995262315 | B65: -6.216979751 | C65: -0.1456142829 | E65: 42.7755821 | F65: 1.403477419
A66: 0.002511886432 | B66: -5.986721242 | C66: -0.1460137306 | E66: 42.52673704 | F66: 1.385675885
A67: 0.00316227766 | B67: -5.756462732 | C67: -0.1463848669 | E67: 42.27172648 | F67: 1.387356059
A68: 0.003981071706 | B68: -5.526204223 | C68: -0.1467318267 | E68: 42.04003298 | F68: 1.361732634
A69: 0.005011872336 | B69: -5.295945714 | C69: -0.1470728729 | E69: 41.8317047 | F69: 1.371572589
A70: 0.006309573445 | B70: -5.065687205 | C70: -0.147389743 | E70: 41.64685826 | F70: 1.400838112
A71: 0.007943282347 | B71: -4.835428695 | C71: -0.1476835618 | E71: 41.44318179 | F71: 1.50586756
A72: 0.01 | B72: -4.605170186 | C72: -0.1479522537 | E72: 41.2219326 | F72: 1.622585128
A73: 0.01258925412 | B73: -4.374911677 | C73: -0.1482104789 | E73: 40.96612921 | F73: 1.775509684
A74: 0.01584893192 | B74: -4.144653167 | C74: -0.1484534001 | E74: 40.70279644 | F74: 1.98839938
A75: 0.01995262315 | B75: -3.914394658 | C75: -0.1486756888
A76: 0.02511886432 | B76: -3.684136149 | C76: -0.1488777807
A77: 0.0316227766 | B77: -3.453877639 | C77: -0.1490645451
A78: 0.03981071706 | B78: -3.22361913 | C78: -0.1492443119
A79: 0.05011872336 | B79: -2.993360621 | C79: -0.1494072437
A80: 0.06309573445 | B80: -2.763102112 | C80: -0.1495555656
A81: 0.07943282347 | B81: -2.532843602 | C81: -0.149689716
A82: 0.1 | B82: -2.302585093 | C82: -0.1498195174
A83: 0.1258925412 | B83: -2.072326584 | C83: -0.1499402795
A84: 0.1584893192 | B84: -1.842068074 | C84: -0.1500507951
A85: 0.1995262315 | B85: -1.611809565 | C85: -0.1501524078
A86: 0.2511886432 | B86: -1.381551056 | C86: -0.1502489435
A87: 0.316227766 | B87: -1.151292546 | C87: -0.1503440455
A88: 0.3981071706 | B88: -0.9210340372 | C88: -0.1504333884
A89: 0.5011872336 | B89: -0.6907755279 | C89: -0.1505189137
A90: 0.6309573445 | B90: -0.4605170186 | C90: -0.1506013058
A91: 0.7943282347 | B91: -0.2302585093 | C91: -0.1506856718
A92: 1 | B92: 0 | C92: -0.1507704652
A93: 1.258925412 | B93: 0.2302585093 | C93: -0.1508554901
A94: 1.584893192 | B94: 0.4605170186 | C94: -0.1509420786
A95: 1.995262315 | B95: 0.6907755279 | C95: -0.1510319462
A96: 2.511886432 | B96: 0.9210340372 | C96: -0.1511286983
A97: 3.16227766 | B97: 1.151292546 | C97: -0.1512305459
A98: 3.981071706 | B98: 1.381551056 | C98: -0.1513389892
A99: 5.011872336 | B99: 1.611809565 | C99: -0.151455183
A100: 6.309573445 | B100: 1.842068074 | C100: -0.1515826459
A101: 7.943282347 | B101: 2.072326584 | C101: -0.1517229049
A102: 10 | B102: 2.302585093 | C102: -0.1518762101
A103: 12.58925412 | B103: 2.532843602 | C103: -0.152044537
A104: 15.84893192 | B104: 2.763102112 | C104: -0.1522301418
A105: 19.95262315 | B105: 2.993360621 | C105: -0.1524385774
A106: 25.11886432 | B106: 3.22361913 | C106: -0.1526701087
A107: 31.6227766 | B107: 3.453877639 | C107: -0.1529275318
A108: 39.81071706 | B108: 3.684136149 | C108: -0.1532136544
A109: 50.11872336 | B109: 3.914394658 | C109: -0.1535345464
A110: 63.09573445 | B110: 4.144653167 | C110: -0.1538912902
A111: 79.43282347 | B111: 4.374911677 | C111: -0.1542806225
A112: 100 | B112: 4.605170186 | C112: -0.1546940289
A113: 125.8925412 | B113: 4.835428695 | C113: -0.1551185437
A114: 158.4893192 | B114: 5.065687205 | C114: -0.1555337434
A115: 199.5262315 | B115: 5.295945714 | C115: -0.1559113978
A116: 251.1886432 | B116: 5.526204223 | C116: -0.1562220981
A117: 316.227766 | B117: 5.756462732 | C117: -0.1564508411
A118: 398.1071706 | B118: 5.986721242 | C118: -0.1566055592
A119: 501.1872336 | B119: 6.216979751 | C119: -0.1566897108
A120: 630.9573445 | B120: 6.44723826 | C120: -0.156721716
A121: 794.3282347 | B121: 6.67749677 | C121: -0.1567312321
A122: 1000 | B122: 6.907755279 | C122: -0.1567340453
A123: 1258.925412 | B123: 7.138013788 | C123: -0.1567347402
A124: 1584.893192 | B124: 7.368272298 | C124: -0.1567351494
A125: 1995.262315 | B125: 7.598530807 | C125: -0.1567352069
A126: 2511.886432 | B126: 7.828789316 | C126: -0.156735211
A127: 3162.27766 | B127: 8.059047825 | C127: -0.1567352112
A128: 3981.071706 | B128: 8.289306335 | C128: -0.1567352112
A129: 5011.872336 | B129: 8.519564844 | C129: -0.1567352112
A130: 6309.573445 | B130: 8.749823353 | C130: -0.1567352112
A131: 7943.282347 | B131: 8.980081863 | C131: -0.1567352112
A132: 10000 | B132: 9.210340372 | C132: -0.1567352112

Sheet NPP_I=0p01A-2 ver2
A1: % Time (s) | B1: log(t) | C1: -calka_x(E) (V) | E1: Zp | F1: Zb
A2: 1e-12 | B2: -27.63102112 | C2: -6.295258072e-07 | E2: 47.0143388 | F2: 0.05592170755
A3: 1.023292992e-12 | B3: -27.60799526 | C3: -6.304103509e-07 | E3: 47.00968475 | F3: 0.07389923147
A4: 1.047128548e-12 | B4: -27.58496941 | C4: -6.313154983e-07 | E4: 47.00160418 | F4: 0.096981326
A5: 1.071519305e-12 | B5: -27.56194356 | C5: -6.322417294e-07 | E5: 46.987833 | F5: 0.1257506792
A6: 1.096478196e-12 | B6: -27.53891771 | C6: -6.331895351e-07 | E6: 46.96511795 | F6: 0.1597614367
A7: 1.122018454e-12 | B7: -27.51589186 | C7: -6.34159418e-07 | E7: 46.9296758 | F7: 0.196375316
A8: 1.148153621e-12 | B8: -27.49286601 | C8: -6.351518924e-07 | E8: 46.87902909 | F8: 0.2298130922
A9: 1.174897555e-12 | B9: -27.46984016 | C9: -6.361674845e-07 | E9: 46.81488281 | F9: 0.2523279119
A10: 1.202264435e-12 | B10: -27.44681431 | C10: -6.372067328e-07 | E10: 46.74395266 | F10: 0.2580354771
A11: 1.230268771e-12 | B11: -27.42378846 | C11: -6.382701883e-07 | E11: 46.67509125 | F11: 0.2458162637
A12: 1.258925412e-12 | B12: -27.40076261 | C12: -6.393584149e-07 | E12: 46.61733058 | F12: 0.2179663073
A13: 1.288249552e-12 | B13: -27.37773676 | C13: -6.404719895e-07 | E13: 46.57682123 | F13: 0.185602819
A14: 1.318256739e-12 | B14: -27.3547109 | C14: -6.416115026e-07 | E14: 46.54967835 | F14: 0.1565669528
A15: 1.348962883e-12 | B15: -27.33168505 | C15: -6.427775584e-07 | E15: 46.52966458 | F15: 0.1343823951
A16: 1.380384265e-12 | B16: -27.3086592 | C16: -6.439707751e-07 | E16: 46.51233239 | F16: 0.1174990634
A17: 1.412537545e-12 | B17: -27.28563335 | C17: -6.451917854e-07 | E17: 46.49742221 | F17: 0.1038959625
A18: 1.445439771e-12 | B18: -27.2626075 | C18: -6.464412366e-07 | E18: 46.4837317 | F18: 0.09288214996
A19: 1.479108388e-12 | B19: -27.23958165 | C19: -6.477197913e-07 | E19: 46.47112121 | F19: 0.08462094885
A20: 1.513561248e-12 | B20: -27.2165558 | C20: -6.490281274e-07 | E20: 46.45902112 | F20: 0.07735654154
A21: 1.548816619e-12 | B21: -27.19352995 | C21: -6.503669386e-07 | E21: 46.44809173 | F21: 0.07132251672
A22: 1.584893192e-12 | B22: -27.1705041 | C22: -6.517369346e-07 | E22: 46.43851313 | F22: 0.06726130082
A23: 1.621810097e-12 | B23: -27.14747825 | C23: -6.53138842e-07 | E23: 46.42855325 | F23: 0.06451763629
A24: 1.659586907e-12 | B24: -27.1244524 | C24: -6.54573404e-07 | E24: 46.41886445 | F24: 0.06276805395
A25: 1.698243652e-12 | B25: -27.10142654 | C25: -6.560413813e-07 | E25: 46.40990259 | F25: 0.06209865592
A26: 1.737800829e-12 | B26: -27.07840069 | C26: -6.575435521e-07 | E26: 46.40070573 | F26: 0.06291806106
A27: 1.77827941e-12 | B27: -27.05537484 | C27: -6.590807129e-07 | E27: 46.3909314 | F27: 0.06492402223
A28: 1.819700859e-12 | B28: -27.03234899 | C28: -6.606536789e-07 | E28: 46.38050939 | F28: 0.06718879987
A29: 1.862087137e-12 | B29: -27.00932314 | C29: -6.622632839e-07 | E29: 46.37046105 | F29: 0.07129432758
A30: 1.905460718e-12 | B30: -26.98629729 | C30: -6.639103815e-07 | E30: 46.35869262 | F30: 0.07651470188
A31: 1.9498446e-12 | B31: -26.96327144 | C31: -6.655958449e-07 | E31: 46.3459941 | F31: 0.08277327317
A32: 1.995262315e-12 | B32: -26.94024559 | C32: -6.673205677e-07 | E32: 46.33225005 | F32: 0.08941530575
A33: 2.041737945e-12 | B33: -26.91721974 | C33: -6.690854645e-07 | E33: 46.31773951 | F33: 0.09807823592
A34: 2.089296131e-12 | B34: -26.89419389 | C34: -6.708914711e-07 | E34: 46.30064074 | F34: 0.1078347862
A35: 2.13796209e-12 | B35: -26.87116804 | C35: -6.727395449e-07 | E35: 46.2816201 | F35: 0.1184263644
A36: 2.187761624e-12 | B36: -26.84814218 | C36: -6.74630666e-07 | E36: 46.26138353 | F36: 0.1295366235
A37: 2.238721139e-12 | B37: -26.82511633 | C37: -6.765658368e-07 | E37: 46.23889604 | F37: 0.143314857
A38: 2.290867653e-12 | B38: -26.80209048 | C38: -6.785460836e-07 | E38: 46.2130533 | F38: 0.1575874675
A39: 2.344228815e-12 | B39: -26.77906463 | C39: -6.805724563e-07 | E39: 46.18447126 | F39: 0.1721579987
A40: 2.398832919e-12 | B40: -26.75603878 | C40: -6.826460293e-07 | E40: 46.15490318 | F40: 0.1884483073
A41: 2.454708916e-12 | B41: -26.73301293 | C41: -6.84767902e-07 | E41: 46.12055231 | F41: 0.2070171041
A42: 2.511886432e-12 | B42: -26.70998708 | C42: -6.869391994e-07 | E42: 46.08281049 | F42: 0.2257347114
A43: 2.570395783e-12 | B43: -26.68696123 | C43: -6.891610729e-07 | E43: 46.04299277 | F43: 0.2444320601
A44: 2.630267992e-12 | B44: -26.66393538 | C44: -6.914347004e-07 | E44: 46.00061514 | F44: 0.2672864623
A45: 2.691534804e-12 | B45: -26.64090953 | C45: -6.937612875e-07 | E45: 45.95248856 | F45: 0.291166497
A46: 2.754228703e-12 | B46: -26.61788368 | C46: -6.961420678e-07 | E46: 45.90077996 | F46: 0.3158540752
A47: 2.818382931e-12 | B47: -26.59485782 | C47: -6.985783036e-07 | E47: 45.84854145 | F47: 0.3434125515
A48: 2.884031503e-12 | B48: -26.57183197 | C48: -7.010712867e-07 | E48: 45.78982457 | F48: 0.3774658239
A49: 2.951209227e-12 | B49: -26.54880612 | C49: -7.036223387e-07 | E49: 45.7258298 | F49: 0.4137152504
A50: 3.01995172e-12 | B50: -26.52578027 | C50: -7.062328124e-07 | E50: 45.65816241 | F50: 0.4532088352
A51: 3.090295433e-12 | B51: -26.50275442 | C51: -7.089040919e-07 | E51: 45.58616055 | F51: 0.5044233042
A52: 3.16227766e-12 | B52: -26.47972857 | C52: -7.116375934e-07 | E52: 45.50217493 | F52: 0.5626751498
A53: 3.235936569e-12 | B53: -26.45670272 | C53: -7.144347663e-07 | E53: 45.40803313 | F53: 0.6290557606
A54: 3.311311215e-12 | B54: -26.43367687 | C54: -7.172970938e-07 | E54: 45.30550876 | F54: 0.7053855133
A55: 3.388441561e-12 | B55: -26.41065102 | C55: -7.202260935e-07 | E55: 45.18262886 | F55: 0.7988030352
A56: 3.467368505e-12 | B56: -26.38762517 | C56: -7.232233183e-07 | E56: 45.0348504 | F56: 0.8979445348
A57: 3.548133892e-12 | B57: -26.36459931 | C57: -7.262903575e-07 | E57: 44.86219136 | F57: 0.9968397315
A58: 3.630780548e-12 | B58: -26.34157346 | C58: -7.294288372e-07 | E58: 44.67032664 | F58: 1.102235537
A59: 3.715352291e-12 | B59: -26.31854761 | C59: -7.326404214e-07 | E59: 44.44067312 | F59: 1.20587976
A60: 3.801893963e-12 | B60: -26.29552176 | C60: -7.359268131e-07 | E60: 44.1807476 | F60: 1.291689864
A61: 3.89045145e-12 | B61: -26.27249591 | C61: -7.392897547e-07 | E61: 43.9092236 | F61: 1.345544319
A62: 3.981071706e-12 | B62: -26.24947006 | C62: -7.427310292e-07 | E62: 43.63744057 | F62: 1.39710394
A63: 4.073802778e-12 | B63: -26.22644421 | C63: -7.462524613e-07 | E63: 43.34308662 | F63: 1.428854012
A64: 4.168693835e-12 | B64: -26.20341836 | C64: -7.498559181e-07 | E64: 43.04264137 | F64: 1.435130665
A65: 4.265795188e-12 | B65: -26.18039251 | C65: -7.535433102e-07 | E65: 42.76843031 | F65: 1.404955427
A66: 4.365158322e-12 | B66: -26.15736666 | C66: -7.573165927e-07 | E66: 42.51975092 | F66: 1.396412595
A67: 4.466835922e-12 | B67: -26.13434081 | C67: -7.611777663e-07 | E67: 42.27014997 | F67: 1.380348219
A68: 4.570881896e-12 | B68: -26.11131495 | C68: -7.651288781e-07 | E68: 42.0307999 | F68: 1.367709962
A69: 4.677351413e-12 | B69: -26.0882891 | C69: -7.691720231e-07 | E69: 41.83588938 | F69: 1.357862565
A70: 4.786300923e-12 | B70: -26.06526325 | C70: -7.733093451e-07 | E70: 41.64666354 | F70: 1.414253749
A71: 4.897788194e-12 | B71: -26.0422374 | C71: -7.775430377e-07 | E71: 41.44218677 | F71: 1.492440284
A72: 5.011872336e-12 | B72: -26.01921155 | C72: -7.818753457e-07 | E72: 41.22869021 | F72: 1.610738945
A73: 5.12861384e-12 | B73: -25.9961857 | C73: -7.863085661e-07 | E73: 41.00141191 | F73: 1.794838523
A74: 5.248074602e-12 | B74: -25.97315985 | C74: -7.908450494e-07 | E74: 40.69111058 | F74: 2.021035668
A75: 5.370317964e-12 | B75: -25.950134 | C75: -7.95487201e-07
A76: 5.495408739e-12 | B76: -25.92710815 | C76: -8.002374822e-07
A77: 5.623413252e-12 | B77: -25.9040823 | C77: -8.050984117e-07
A78: 5.754399373e-12 | B78: -25.88105645 | C78: -8.100725668e-07
A79: 5.888436554e-12 | B79: -25.85803059 | C79: -8.151625848e-07
A80: 6.025595861e-12 | B80: -25.83500474 | C80: -8.203711646e-07
A81: 6.165950019e-12 | B81: -25.81197889 | C81: -8.257010678e-07
A82: 6.309573445e-12 | B82: -25.78895304 | C82: -8.311551204e-07
A83: 6.45654229e-12 | B83: -25.76592719 | C83: -8.367362142e-07
A84: 6.60693448e-12 | B84: -25.74290134 | C84: -8.424473084e-07
A85: 6.760829754e-12 | B85: -25.71987549 | C85: -8.48291431e-07
A86: 6.918309709e-12 | B86: -25.69684964 | C86: -8.542716808e-07
A87: 7.079457844e-12 | B87: -25.67382379 | C87: -8.603912284e-07
A88: 7.244359601e-12 | B88: -25.65079794 | C88: -8.666533186e-07
A89: 7.413102413e-12 | B89: -25.62777209 | C89: -8.730612717e-07
A90: 7.58577575e-12 | B90: -25.60474623 | C90: -8.796184851e-07
A91: 7.762471166e-12 | B91: -25.58172038 | C91: -8.863284357e-07
A92: 7.943282347e-12 | B92: -25.55869453 | C92: -8.931946811e-07
A93: 8.128305162e-12 | B93: -25.53566868 | C93: -9.002208619e-07
A94: 8.317637711e-12 | B94: -25.51264283 | C94: -9.074107035e-07
A95: 8.511380382e-12 | B95: -25.48961698 | C95: -9.14768018e-07
A96: 8.7096359e-12 | B96: -25.46659113 | C96: -9.222967064e-07
A97: 8.912509381e-12 | B97: -25.44356528 | C97: -9.300007604e-07
A98: 9.120108394e-12 | B98: -25.42053943 | C98: -9.378842649e-07
A99: 9.332543008e-12 | B99: -25.39751358 | C99: -9.459513999e-07
A100: 9.54992586e-12 | B100: -25.37448772 | C100: -9.542064425e-07
A101: 9.77237221e-12 | B101: -25.35146187 | C101: -9.626537698e-07
A102: 1e-11 | B102: -25.32843602 | C102: -9.712978606e-07
A103: 1.023292992e-11 | B103: -25.30541017 | C103: -9.801432982e-07
A104: 1.047128548e-11 | B104: -25.28238432 | C104: -9.891947725e-07
A105: 1.071519305e-11 | B105: -25.25935847 | C105: -9.984570826e-07
A106: 1.096478196e-11 | B106: -25.23633262 | C106: -1.00793514e-06
A107: 1.122018454e-11 | B107: -25.21330677 | C107: -1.017633969e-06
A108: 1.148153621e-11 | B108: -25.19028092 | C108: -1.027558713e-06
A109: 1.174897555e-11 | B109: -25.16725507 | C109: -1.037714635e-06
A110: 1.202264435e-11 | B110: -25.14422922 | C110: -1.048107117e-06
A111: 1.230268771e-11 | B111: -25.12120336 | C111: -1.058741672e-06
A112: 1.258925412e-11 | B112: -25.09817751 | C112: -1.069623938e-06
A113: 1.288249552e-11 | B113: -25.07515166 | C113: -1.080759684e-06
A114: 1.318256739e-11 | B114: -25.05212581 | C114: -1.092154815e-06
A115: 1.348962883e-11 | B115: -25.02909996 | C115: -1.103815373e-06
A116: 1.380384265e-11 | B116: -25.00607411 | C116: -1.11574754e-06
A117: 1.412537545e-11 | B117: -24.98304826 | C117: -1.127957643e-06
A118: 1.445439771e-11 | B118: -24.96002241 | C118: -1.140452155e-06
A119: 1.479108388e-11 | B119: -24.93699656 | C119: -1.153237702e-06
A120: 1.513561248e-11 | B120: -24.91397071 | C120: -1.166321063e-06
A121: 1.548816619e-11 | B121: -24.89094486 | C121: -1.179709175e-06
A122: 1.584893192e-11 | B122: -24.867919 | C122: -1.193409136e-06
A123: 1.621810097e-11 | B123: -24.84489315 | C123: -1.207428209e-06
A124: 1.659586907e-11 | B124: -24.8218673 | C124: -1.221773829e-06
A125: 1.698243652e-11 | B125: -24.79884145 | C125: -1.236453602e-06
A126: 1.737800829e-11 | B126: -24.7758156 | C126: -1.25147531e-06
A127: 1.77827941e-11 | B127: -24.75278975 | C127: -1.266846919e-06
A128: 1.819700859e-11 | B128: -24.7297639 | C128: -1.282576578e-06
A129: 1.862087137e-11 | B129: -24.70673805 | C129: -1.298672628e-06
A130: 1.905460718e-11 | B130: -24.6837122 | C130: -1.315143604e-06
A131: 1.9498446e-11 | B131: -24.66068635 | C131: -1.331998238e-06
A132: 1.995262315e-11 | B132: -24.6376605 | C132: -1.349245466e-06
A133: 2.041737945e-11 | B133: -24.61463464 | C133: -1.366894435e-06
A134: 2.089296131e-11 | B134: -24.59160879 | C134: -1.3849545e-06
A135: 2.13796209e-11 | B135: -24.56858294 | C135: -1.403435239e-06
A136: 2.187761624e-11 | B136: -24.54555709 | C136: -1.422346449e-06
A137: 2.238721139e-11 | B137: -24.52253124 | C137: -1.441698158e-06
A138: 2.290867653e-11 | B138: -24.49950539 | C138: -1.461500626e-06
A139: 2.344228815e-11 | B139: -24.47647954 | C139: -1.481764352e-06
A140: 2.220703125e-12 | B140: -26.83319725 | C140: -6.763015746e-07
A141: 2.454708916e-11 | B141: -24.43042784 | C141: -1.569384592e-06
A142: 2.511886432e-11 | B142: -24.40740199 | C142: -1.592256304e-06
A143: 2.570395783e-11 | B143: -24.38437613 | C143: -1.639414408e-06
A144: 2.630267992e-11 | B144: -24.36135028 | C144: -1.664002854e-06
A145: 2.691534804e-11 | B145: -24.33832443 | C145: -1.715233115e-06
A146: 2.754228703e-11 | B146: -24.31529858 | C146: -1.741707732e-06
A147: 6.45283464e-12 | B147: -25.7665016 | C147: -8.521539749e-07
A148: 2.884031503e-11 | B148: -24.26924688 | C148: -2.013644001e-06
A149: 2.951209227e-11 | B149: -24.24622103 | C149: -2.054216481e-06
A150: 3.01995172e-11 | B150: -24.22319518 | C150: -2.096079018e-06
A151: 3.090295433e-11 | B151: -24.20016933 | C151: -2.184230658e-06
A152: 3.16227766e-11 | B152: -24.17714348 | C152: -2.231621776e-06
A153: 3.235936569e-11 | B153: -24.15411763 | C153: -2.280600777e-06
A154: 3.311311215e-11 | B154: -24.13109177 | C154: -2.333929274e-06
A155: 3.388441561e-11 | B155: -24.10806592 | C155: -2.386445334e-06
A156: 3.467368505e-11 | B156: -24.08504007 | C156: -2.440746319e-06
A157: 3.548133892e-11 | B157: -24.06201422 | C157: -2.496900277e-06
A158: 3.630780548e-11 | B158: -24.03898837 | C158: -2.554978087e-06
A159: 3.715352291e-11 | B159: -24.01596252 | C159: -2.600527436e-06
A160: 3.801893963e-11 | B160: -23.99293667 | C160: -2.661633954e-06
A161: 3.89045145e-11 | B161: -23.96991082 | C161: -2.724833692e-06
A162: 3.981071706e-11 | B162: -23.94688497 | C162: -2.790206977e-06
A163: 4.073802778e-11 | B163: -23.92385912 | C163: -2.842087465e-06
A164: 4.168693835e-11 | B164: -23.90083327 | C164: -2.910796858e-06
A165: 4.265795188e-11 | B165: -23.87780741 | C165: -2.981861767e-06
A166: 4.365158322e-11 | B166: -23.85478156 | C166: -3.055372646e-06
A167: 4.466835922e-11 | B167: -23.83175571 | C167: -3.13142373e-06
A168: 4.570881896e-11 | B168: -23.80872986 | C168: -3.193772388e-06
A169: 4.677351413e-11 | B169: -23.78570401 | C169: -3.273783758e-06
A170: 4.786300923e-11 | B170: -23.76267816 | C170: -3.356548643e-06
A171: 4.897788194e-11 | B171: -23.73965231 | C171: -3.41160235e-06
A172: 5.011872336e-11 | B172: -23.71662646 | C172: -3.49600424e-06
A173: 5.12861384e-11 | B173: -23.69360061 | C173: -3.583016858e-06
A174: 5.248074602e-11 | B174: -23.67057476 | C174: -3.672714717e-06
A175: 5.370317964e-11 | B175: -23.64754891 | C175: -3.765173516e-06
A176: 5.495408739e-11 | B176: -23.62452305 | C176: -3.860470056e-06
A177: 5.623413252e-11 | B177: -23.6014972 | C177: -3.95868215e-06
A178: 5.754399373e-11 | B178: -23.57847135 | C178: -4.059980559e-06
A179: 5.888436554e-11 | B179: -23.5554455 | C179: -4.164274115e-06
A180: 6.025595861e-11 | B180: -23.53241965 | C180: -4.271723094e-06
A181: 6.165950019e-11 | B181: -23.5093938 | C181: -4.382408213e-06
A182: 6.309573445e-11 | B182: -23.48636795 | C182: -4.496410476e-06
A183: 6.45654229e-11 | B183: -23.4633421 | C183: -4.613810972e-06
A184: 6.60693448e-11 | B184: -23.44031625 | C184: -4.747628338e-06
A185: 6.760829754e-11 | B185: -23.4172904 | C185: -4.874151764e-06
A186: 6.918309709e-11 | B186: -23.39426454 | C186: -5.004578367e-06
A187: 7.079457844e-11 | B187: -23.37123869 | C187: -5.13901398e-06
A188: 7.244359601e-11 | B188: -23.34821284 | C188: -5.277565447e-06
A189: 7.413102413e-11 | B189: -23.32518699 | C189: -5.420340426e-06
A190: 7.58577575e-11 | B190: -23.30216114 | C190: -5.567447165e-06
A191: 7.762471166e-11 | B191: -23.27913529 | C191: -5.728640223e-06
A192: 7.943282347e-11 | B192: -23.25610944 | C192: -5.886479491e-06
A193: 8.128305162e-11 | B193: -23.23308359 | C193: -6.049215038e-06
A194: 8.317637711e-11 | B194: -23.21005774 | C194: -6.216980299e-06
A195: 8.511380382e-11 | B195: -23.18703189 | C195: -6.389910007e-06
A196: 8.7096359e-11 | B196: -23.16400604 | C196: -6.568139942e-06
A197: 8.912509381e-11 | B197: -23.14098018 | C197: -6.760711958e-06
A198: 9.120108394e-11 | B198: -23.11795433 | C198: -6.951789939e-06
A199: 9.332543008e-11 | B199: -23.09492848 | C199: -7.148856578e-06
A200: 9.54992586e-11 | B200: -23.07190263 | C200: -7.352080349e-06
... 1402 more rows

Sheet NPP_I=0p01A-3
A1: % Time (s) | B1: log(t) | C1: -calka_x(E) (V) | E1: Zp | F1: Zb
A2: 0 | B2: -Inf | C2: -6.295258072e-07 | E2: 17.40666182 | F2: 0.05584311641
A3: 1.995262315e-08 | B3: -17,729905216054153 | C3: -0.01264749258 | E3: 17.40206501 | F3: 0.07383359518
A4: 2.105668499e-08 | B4: -17,676047750729023 | C4: -0.01355142949 | E4: 17.39405508 | F4: 0.09697089058
A5: 2.222183917e-08 | B5: -17,622190285403892 | C5: -0.01450846318 | E5: 17.38033627 | F5: 0.125866044
A6: 2.345146619e-08 | B6: -17,56833282007876 | C6: -0.01552010497 | E6: 17.35758345 | F6: 0.160070398
A7: 2.47491336e-08 | B7: -17,51447535475363 | C7: -0.01658776867 | E7: 17.32195837 | F7: 0.1968573406
A8: 2.611860636e-08 | B8: -17,460617889428498 | C8: -0.01771195641 | E8: 17.27105519 | F8: 0.2303957688
A9: 2.756385775e-08 | B9: -17,406760424103368 | C9: -0.01889361312 | E9: 17.20634432 | F9: 0.2530478831
A10: 2.908908094e-08 | B10: -17,352902958778238 | C10: -0.02013301157 | E10: 17.13433103 | F10: 0.2577354383
A11: 3.069870108e-08 | B11: -17,299045493453107 | C11: -0.02142988201 | E11: 17.06665177 | F11: 0.2435059674
A12: 3.239738821e-08 | B12: -17,245188028127973 | C12: -0.02278387562 | E12: 17.01179192 | F12: 0.2166992095
A13: 3.419007079e-08 | B13: -17,191330562802843 | C13: -0.02419383925 | E13: 16.96916702 | F13: 0.186227104
A14: 3.608194997e-08 | B14: -17,137473097477713 | C14: -0.02565847197 | E14: 16.94129814 | F14: 0.1572060456
A15: 3.807851471e-08 | B15: -17,083615632152583 | C15: -0.02717570558 | E15: 16.92076049 | F15: 0.1337707068
A16: 4.018555771e-08 | B16: -17,029758166827452 | C16: -0.0287432456 | E16: 16.90489702 | F16: 0.1161626787
A17: 4.240919218e-08 | B17: -16,975900701502322 | C17: -0.03035810552 | E17: 16.89003633 | F17: 0.1033772403
A18: 4.475586962e-08 | B18: -16,922043236177192 | C18: -0.03201693492 | E18: 16.87585167 | F18: 0.09230089479
A19: 4.72323985e-08 | B19: -16,868185770852058 | C19: -0.03371581518 | E19: 16.8628876 | F19: 0.08273185381
A20: 4.984596406e-08 | B20: -16,814328305526928 | C20: -0.03545018197 | E20: 16.85175449 | F20: 0.07518009484
A21: 5.260414909e-08 | B21: -16,760470840201798 | C21: -0.03721501804 | E21: 16.84060023 | F21: 0.06938087401
A22: 5.551495601e-08 | B22: -16,706613374876667 | C22: -0.03900545069 | E22: 16.82966976 | F22: 0.06395711634
A23: 5.858683001e-08 | B23: -16,652755909551537 | C23: -0.04081613884 | E23: 16.82117699 | F23: 0.05909007688
A24: 6.18286836e-08 | B24: -16,598898444226407 | C24: -0.04264195026 | E24: 16.81175427 | F24: 0.05701659997
A25: 6.524992247e-08 | B25: -16,545040978901277 | C25: -0.04447812461 | E25: 16.8013983 | F25: 0.05403350691
A26: 6.886047276e-08 | B26: -16,491183513576143 | C26: -0.046317909 | E26: 16.79285555 | F26: 0.0513939821
A27: 7.267080984e-08 | B27: -16,437326048251016 | C27: -0.04815680257 | E27: 16.78344969 | F27: 0.04983094937
A28: 7.669198877e-08 | B28: -16,383468582925886 | C28: -0.04998826242 | E28: 16.77259429 | F28: 0.04762897143
A29: 8.093567629e-08 | B29: -16,329611117600756 | C29: -0.0518070955 | E29: 16.76214016 | F29: 0.04527788313
A30: 8.541418474e-08 | B30: -16,275753652275622 | C30: -0.05360760769 | E30: 16.75030824 | F30: 0.04122753165
A31: 9.014050774e-08 | B31: -16,22189618695049 | C31: -0.05538422995 | E31: 16.7378183 | F31: 0.03572228943
A32: 9.512835789e-08 | B32: -16,16803872162536 | C32: -0.05713189679 | E32: 16.72335995 | F32: 0.0277957105
A33: 1.003922066e-07 | B33: -16,11418125630023 | C33: -0.05884601835 | E33: 16.70652635 | F33: 0.01542460388
A34: 1.05947326e-07 | B34: -16,0603237909751 | C34: -0.06052294884 | E34: 16.68821391 | F34: -0.003240733742
A35: 1.118098333e-07 | B35: -16,00646632564997 | C35: -0.06215993763 | E35: 16.66638693 | F35: -0.02837017061
A36: 1.179967376e-07 | B36: -15,952608860324839 | C36: -0.06375372617 | E36: 16.63896385 | F36: -0.06495607998
A37: 1.245259891e-07 | B37: -15,898751394999708 | C37: -0.06530166561 | E37: 16.60433101 | F37: -0.116852364
A38: 1.314165313e-07 | B38: -15,844893929674576 | C38: -0.06680215135 | E38: 16.5601553 | F38: -0.1865686518
A39: 1.38688356e-07 | B39: -15,791036464349446 | C39: -0.06825330206 | E39: 16.49668806 | F39: -0.2790684042
A40: 1.46362561e-07 | B40: -15,737178999024316 | C40: -0.06965367698 | E40: 16.40425597 | F40: -0.3993222217
A41: 1.544614118e-07 | B41: -15,683321533699184 | C41: -0.07100217709 | E41: 16.26679538 | F41: -0.5461581493
A42: 1.630084058e-07 | B42: -15,629464068374054 | C42: -0.07229853854 | E42: 16.05850831 | F42: -0.701947467
A43: 1.720283406e-07 | B43: -15,575606603048923 | C43: -0.07354237323 | E43: 15.74965064 | F43: -0.8251155322
A44: 1.815473859e-07 | B44: -15,521749137723793 | C44: -0.07473437909 | E44: 15.33824758 | F44: -0.8157518611
A45: 1.915931598e-07 | B45: -15,467891672398661 | C45: -0.07587664817 | E45: 14.92418377 | F45: -0.5115003554
A46: 2.021948082e-07 | B46: -15,41403420707353 | C46: -0.0769710814 | E46: 14.83027187 | F46: 0.1870388424
A47: 2.133830901e-07 | B47: -15,3601767417484 | C47: -0.07801937268 | E47: 15.53166172 | F47: 0.8454412554
A48: 2.251904662e-07 | B48: -15,306319276423269 | C48: -0.07902607622 | E48: 16.52311764 | F48: 0.2304663123
A49: 2.376511937e-07 | B49: -15,252461811098138 | C49: -0.07999176144 | E49: 15.49504818 | F49: -0.8540165817
A50: 2.508014252e-07 | B50: -15,198604345773008 | C50: -0.0809188089 | E50: 15.45362535 | F50: 0.8346066663
A51: 2.646793138e-07 | B51: -15,144746880447876 | C51: -0.08181183934 | E51: 15.51852536 | F51: -0.8575244072
A52: 2.793251239e-07 | B52: -15,090889415122746 | C52: -0.08267342662 | E52: 16.51932642 | F52: -0.1919072115
A53: 2.947813477e-07 | B53: -15,037031949797615 | C53: -0.08350918966 | E53: 16.50080575 | F53: -0.260261543
A54: 3.110928288e-07 | B54: -14,983174484472485 | C54: -0.08431992192 | E54: 14.96870922 | F54: -0.51498612
A55: 3.283068922e-07 | B55: -14,929317019147353 | C55: -0.08510879952 | E55: 15.93682117 | F55: -0.8274702111
A56: 3.464734815e-07 | B56: -14,875459553822223 | C56: -0.08587245668 | E56: 14.97829132 | F56: 0.5194600078
A57: 3.656453039e-07 | B57: -14,821602088497093 | C57: -0.086615402 | E57: 15.96764126 | F57: 0.8190620318
A58: 3.858779832e-07 | B58: -14,76774462317196 | C58: -0.08734136016 | E58: 16.44708678 | F58: -0.3958269167
A59: 4.07230221e-07 | B59: -14,71388715784683 | C59: -0.0880485222 | E59: 15.78533797 | F59: 0.8624523018
A60: 4.297639672e-07 | B60: -14,6600296925217 | C60: -0.08873953214 | E60: 15.09884166 | F60: -0.6535749737
A61: 4.535445995e-07 | B61: -14,60617222719657 | C61: -0.08942468983 | E61: 14.80501035 | F61: -0.04369517253
A62: 4.786411133e-07 | B62: -14,55231476187144 | C62: -0.09010210901 | E62: 16.54291594 | F62: 0.01635514976
A63: 5.051263219e-07 | B63: -14,498457296546308 | C63: -0.09076895622 | E63: 16.54246748 | F63: -0.0338394543
A64: 5.330770675e-07 | B64: -14,44459983122118 | C64: -0.09142554948 | E64: 16.53487074 | F64: -0.1189288705
A65: 5.625744445e-07 | B65: -14,390742365896045 | C65: -0.09207776855 | E65: 16.50506706 | F65: -0.2540620343
A66: 5.937040343e-07 | B66: -14,336884900570917 | C66: -0.09272535092 | E66: 15.6938477 | F66: 0.8693236478
A67: 6.265561541e-07 | B67: -14,283027435245785 | C67: -0.0933595665 | E67: 15.42428747 | F67: 0.8330641677
A68: 6.612261186e-07 | B68: -14,229169969920656 | C68: -0.09398462285 | E68: 15.15274612 | F68: 0.696320361
A69: 6.978145169e-07 | B69: -14,175312504595523 | C69: -0.09460228948 | E69: 16.43776395 | F69: 0.414919191
A70: 7.364275038e-07 | B70: -14,121455039270394 | C70: -0.09519979502 | E70: 16.52832174 | F70: 0.1596396158
A71: 7.771771083e-07 | B71: -14,067597573945262 | C71: -0.09579268732 | E71: 16.47710893 | F71: -0.3322306272
A72: 8.201815583e-07 | B72: -14,013740108620132 | C72: -0.09637376257 | E72: 15.84374688 | F72: -0.8527384483
A73: 8.655656239e-07 | B73: -13,959882643295002 | C73: -0.09694084748 | E73: 14.81724316 | F73: -0.1514907615
A74: 9.13460979e-07 | B74: -13,906025177969871 | C74: -0.09750167781 | E74: 14.82738691 | F74: 0.2005070098
A75: 9.640065838e-07 | B75: -13,85216771264474 | C75: -0.09804620137 | E75: 16.51940681 | F75: -0.2015598495
A76: 1.017349088e-06 | B76: -13,798310247319609 | C76: -0.0985806587 | E76: 14.81228098 | F76: -0.1200996531
A77: 1.073643255e-06 | B77: -13,744452781994479 | C77: -0.09910268904 | E77: 15.89810183 | F77: -0.8400671513
A78: 1.133052413e-06 | B78: -13,690595316669349 | C78: -0.09961220619 | E78: 15.43730889 | F78: 0.836873149
A79: 1.195748927e-06 | B79: -13,636737851344217 | C79: -0.1001118001 | E79: 15.0546629 | F79: 0.6108731229
A80: 1.261914702e-06 | B80: -13,582880386019086 | C80: -0.1006045539 | E80: 16.01191328 | F80: -0.8010263428
A81: 1.331741704e-06 | B81: -13,529022920693956 | C81: -0.1010854146 | E81: 15.51777462 | F81: 0.8555094445
A82: 1.405432525e-06 | B82: -13,475165455368824 | C82: -0.1015619424 | E82: 15.07690972 | F82: -0.6326224177
A83: 1.483200967e-06 | B83: -13,421307990043694 | C83: -0.102035631 | E83: 15.06912497 | F83: -0.6251888681
A84: 1.565272661e-06 | B84: -13,367450524718564 | C84: -0.1024976093 | E84: 15.8337374 | F84: 0.8546846842
A85: 1.651885724e-06 | B85: -13,313593059393432 | C85: -0.1029562503 | E85: 16.42411442 | F85: -0.4390488132
A86: 1.743291449e-06 | B86: -13,259735594068301 | C86: -0.1034034976 | E86: 16.47760646 | F86: -0.3310607124
A87: 1.839755034e-06 | B87: -13,205878128743171 | C87: -0.1038403996 | E87: 15.72994206 | F87: -0.8677393037
A88: 1.941556352e-06 | B88: -13,15202066341804 | C88: -0.1042659472 | E88: 16.24382772 | F88: 0.6564339639
A89: 2.04899076e-06 | B89: -13,098163198092909 | C89: -0.1046792397 | E89: 15.87177292 | F89: -0.8466705169
A90: 2.162369963e-06 | B90: -13,044305732767778 | C90: -0.105081061 | E90: 15.42247269 | F90: 0.8325439448
A91: 2.282022909e-06 | B91: -12,990448267442648 | C91: -0.1054728052
A92: 2.408296752e-06 | B92: -12,936590802117516 | C92: -0.1058568007
A93: 2.541557854e-06 | B93: -12,882733336792386 | C93: -0.1062375612
A94: 2.682192847e-06 | B94: -12,828875871467256 | C94: -0.1066213242
A95: 2.830609761e-06 | B95: -12,775018406142125 | C95: -0.1069881743
A96: 2.987239202e-06 | B96: -12,721160940816993 | C96: -0.1073490782
A97: 3.152535603e-06 | B97: -12,667303475491863 | C97: -0.107706898
A98: 3.326978543e-06 | B98: -12,613446010166733 | C98: -0.1080660997
A99: 3.511074139e-06 | B99: -12,559588544841601 | C99: -0.1084344644
A100: 3.705356511e-06 | B100: -12,50573107951647 | C100: -0.1088266195
A101: 3.910389337e-06 | B101: -12,451873614191342 | C101: -0.1092268916
A102: 4.126767484e-06 | B102: -12,398016148866208 | C102: -0.109634185
A103: 4.355118737e-06 | B103: -12,34415868354108 | C103: -0.1100467501
A104: 4.596105616e-06 | B104: -12,290301218215948 | C104: -0.1104609032
A105: 4.850427304e-06 | B105: -12,23644375289082 | C105: -0.1108757462
A106: 5.118821672e-06 | B106: -12,182586287565686 | C106: -0.1112887896
A107: 5.402067419e-06 | B107: -12,128728822240557 | C107: -0.1117099837
A108: 5.700986335e-06 | B108: -12,074871356915425 | C108: -0.1121313262
A109: 6.01644568e-06 | B109: -12,021013891590297 | C109: -0.112552677
A110: 6.349360707e-06 | B110: -11,967156426265163 | C110: -0.1129823653
A111: 6.700697309e-06 | B111: -11,913298960940034 | C111: -0.113412901
A112: 7.071474832e-06 | B112: -11,8594414956149 | C112: -0.1138470068
A113: 7.46276902e-06 | B113: -11,805584030289772 | C113: -0.114284874
A114: 7.875715148e-06 | B114: -11,75172656496464 | C114: -0.1147267841
A115: 8.311511306e-06 | B115: -11,697869099639512 | C115: -0.1151741192
A116: 8.771421884e-06 | B116: -11,644011634314378 | C116: -0.1156252515
A117: 9.256781231e-06 | B117: -11,59015416898925 | C117: -0.1160823979
A118: 9.768997535e-06 | B118: -11,536296703664117 | C118: -0.116548597
A119: 1.03095569e-05 | B119: -11,482439238338989 | C119: -0.1170209439
A120: 1.088002767e-05 | B120: -11,428581773013855 | C120: -0.1174953865
A121: 1.148206497e-05 | B121: -11,374724307688727 | C121: -0.1179762894
A122: 1.21174155e-05 | B122: -11,320866842363596 | C122: -0.1184603997
A123: 1.278792263e-05 | B123: -11,267009377038464 | C123: -0.1189465937
A124: 1.349553171e-05 | B124: -11,213151911713334 | C124: -0.1194353597
A125: 1.424229575e-05 | B125: -11,159294446388204 | C125: -0.1199254454
A126: 1.503038136e-05 | B126: -11,105436981063072 | C126: -0.1204168898
A127: 1.586207504e-05 | B127: -11,051579515737942 | C127: -0.1209080337
A128: 1.673978979e-05 | B128: -10,997722050412811 | C128: -0.121398971
A129: 1.766607216e-05 | B129: -10,94386458508768 | C129: -0.1218898336
A130: 1.864360959e-05 | B130: -10,890007119762549 | C130: -0.1223801523
A131: 1.967523825e-05 | B131: -10,836149654437419 | C131: -0.1228693356
A132: 2.076395122e-05 | B132: -10,782292189112288 | C132: -0.1233593836
A133: 2.191290722e-05 | B133: -10,728434723787156 | C133: -0.1238483484
A134: 2.312543975e-05 | B134: -10,674577258462026 | C134: -0.1243298295
A135: 2.440506676e-05 | B135: -10,620719793136896 | C135: -0.1248066921
A136: 2.575550087e-05 | B136: -10,566862327811764 | C136: -0.1252791258
A137: 2.718066012e-05 | B137: -10,513004862486634 | C137: -0.125748083
A138: 2.868467938e-05 | B138: -10,459147397161503 | C138: -0.1262253172
A139: 3.02719223e-05 | B139: -10,405289931836373 | C139: -0.1267124145
A140: 3.194699399e-05 | B140: -10,351432466511241 | C140: -0.1271965291
A141: 3.371475437e-05 | B141: -10,297575001186111 | C141: -0.1276740913
A142: 3.558033231e-05 | B142: -10,243717535860982 | C142: -0.1281544296
A143: 3.754914046e-05 | B143: -10,189860070535849 | C143: -0.1286280328
A144: 3.962689097e-05 | B144: -10,13600260521072 | C144: -0.1290901356
A145: 4.181961208e-05 | B145: -10,082145139885588 | C145: -0.1295533341
A146: 4.41336656e-05 | B146: -10,02828767456046 | C146: -0.1300062749
A147: 4.657576534e-05 | B147: -9,974430209235326 | C147: -0.1304501047
A148: 4.915299664e-05 | B148: -9,920572743910197 | C148: -0.1308902671
A149: 5.18728369e-05 | B149: -9,866715278585065 | C149: -0.1313180741
A150: 5.474317726e-05 | B150: -9,812857813259935 | C150: -0.131738164
A151: 5.777234552e-05 | B151: -9,759000347934803 | C151: -0.1321482662
A152: 6.09691303e-05 | B152: -9,705142882609675 | C152: -0.1325489831
A153: 6.43428065e-05 | B153: -9,65128541728454 | C153: -0.1329409668
A154: 6.790316227e-05 | B154: -9,597427951959412 | C154: -0.1333242677
A155: 7.166052738e-05 | B155: -9,54357048663428 | C155: -0.1337032379
A156: 7.562580316e-05 | B156: -9,489713021309152 | C156: -0.1340832178
A157: 7.981049419e-05 | B157: -9,435855555984018 | C157: -0.1344646892
A158: 8.422674162e-05 | B158: -9,38199809065889 | C158: -0.1348417108
A159: 8.888735844e-05 | B159: -9,328140625333758 | C159: -0.1352111294
A160: 9.380586662e-05 | B160: -9,274283160008627 | C160: -0.1355695679
A161: 9.899653636e-05 | B161: -9,220425694683495 | C161: -0.1359247843
A162: 0.0001044744275 | B162: -9,166568229358365 | C162: -0.1362661526
A163: 0.0001102554332 | B163: -9,112710764033237 | C163: -0.136589096
A164: 0.0001163563261 | B164: -9,058853298708105 | C164: -0.1369126576
A165: 0.0001227948068 | B165: -9,004995833382974 | C165: -0.1372237745
A166: 0.0001295895554 | B166: -8,951138368057844 | C166: -0.1375215635
A167: 0.0001367602859 | B167: -8,897280902732712 | C167: -0.1378144054
A168: 0.0001443278028 | B168: -8,843423437407582 | C168: -0.1380922711
A169: 0.0001523140619 | B169: -8,789565972082451 | C169: -0.1383660661
A170: 0.000160742234 | B170: -8,73570850675732 | C170: -0.1386271439
A171: 0.0001696367721 | B171: -8,68185104143219 | C171: -0.1388784523
A172: 0.000179023482 | B172: -8,627993576107059 | C172: -0.1391194224
A173: 0.0001889295978 | B173: -8,574136110781929 | C173: -0.139350639
A174: 0.0001993838602 | B174: -8,520278645456797 | C174: -0.1395732476
A175: 0.0002104166006 | B175: -8,466421180131666 | C175: -0.1397886701
A176: 0.0002220598285 | B176: -8,412563714806536 | C176: -0.1400011041
A177: 0.0002343473247 | B177: -8,358706249481404 | C177: -0.1402147545
A178: 0.0002473147393 | B178: -8,304848784156274 | C178: -0.1404265856
A179: 0.0002609996951 | B179: -8,250991318831144 | C179: -0.1406343024
A180: 0.0002754418965 | B180: -8,197133853506012 | C180: -0.1408358762
A181: 0.0002906832452 | B181: -8,143276388180881 | C181: -0.1410313964
A182: 0.0003067679612 | B182: -8,089418922855751 | C182: -0.1412219138
A183: 0.0003237427116 | B183: -8,035561457530621 | C183: -0.1414021902
A184: 0.0003416567458 | B184: -7,98170399220549 | C184: -0.141574665
A185: 0.0003605620381 | B185: -7,927846526880359 | C185: -0.1417459544
A186: 0.0003805134392 | B186: -7,8739890615552275 | C186: -0.1419082228
A187: 0.0004015688344 | B187: -7,820131596230097 | C187: -0.1420674836
A188: 0.0004237893124 | B188: -7,766274130904966 | C188: -0.1422213457
A189: 0.0004472393422 | B189: -7,712416665579836 | C189: -0.1423701864
A190: 0.0004719869598 | B190: -7,658559200254705 | C190: -0.1425159216
A191: 0.0004981039664 | B191: -7,604701734929574 | C191: -0.1426561588
A192: 0.0005256661358 | B192: -7,550844269604443 | C192: -0.1427924862
A193: 0.000554753435 | B193: -7,496986804279312 | C193: -0.1429247395
A194: 0.0005854502557 | B194: -7,443129338954182 | C194: -0.1430538618
A195: 0.0006178456595 | B195: -7,389271873629051 | C195: -0.1431799627
A196: 0.0006520336361 | B196: -7,335414408303922 | C196: -0.1433053353
A197: 0.000688113376 | B197: -7,281556942978791 | C197: -0.1434324841
A198: 0.0007261895583 | B198: -7,227699477653661 | C198: -0.1435599165
A199: 0.0007663726546 | B199: -7,17384201232853 | C199: -0.1436867583
A200: 0.0008087792491 | B200: -7,119984547003399 | C200: -0.1438121078
... 303 more rows

Sheet dupa
A1: Time (s) | B1: Kolumna1 | C1: -intop1(E) (V) | E1: Z' | F1: -Z'' | G1: Z' | H1: -Z''
A2: 0 | C2: -0.1637 | E2: 22.26489032 | F2: 0.008961676552 | G2: =(E2-$E$106)*10000 -> 19631.13913 | H2: =F2*10000 -> 89.61676552
A3: 1e-09 | C3: -0.16371 | E3: 22.26480498 | F3: 0.01194915391 | G3: =(E3-$E$106)*10000 -> 19630.28574 | H3: =F3*10000 -> 119.4915391
A4: 1.0233e-09 | C4: -0.16371 | E4: 22.26465328 | F4: 0.01593105381 | G4: 19628.7687 | H4: 159.3105381
A5: 1.0471e-09 | C5: -0.16371 | E5: 22.26438367 | F5: 0.02123634614 | G5: 19626.07263 | H5: 212.3634614
A6: 1.0715e-09 | C6: -0.16371 | E6: 22.26390476 | F6: 0.02830004076 | G6: 19621.2835 | H6: 283.0004076
A7: 1.0965e-09 | C7: -0.16371 | E7: 22.26305477 | F7: 0.03769354723 | G7: 19612.7836 | H7: 376.9354723
A8: 1.122e-09 | C8: -0.16371 | E8: 22.26154844 | F8: 0.05015841883 | G8: 19597.72038 | H8: 501.5841883
A9: 1.1482e-09 | C9: -0.16371 | E9: 22.25888611 | F9: 0.06663575315 | G9: 19571.09701 | H9: 666.3575315
A10: 1.1749e-09 | C10: -0.16371 | E10: 22.25420272 | F10: 0.08827002306 | G10: 19524.26311 | H10: 882.7002306
A11: 1.2023e-09 | C11: -0.16372 | E11: 22.24603208 | F11: 0.1163368462 | G11: 19442.55672 | H11: 1163.368462
A12: 1.2303e-09 | C12: -0.16372 | E12: 22.23198219 | F12: 0.1519889999 | G12: 19302.05789 | H12: 1519.889999
A13: 1.2589e-09 | C13: -0.16372 | E13: 22.20841432 | F13: 0.1956394865 | G13: 19066.37914 | H13: 1956.394865
A14: 1.2882e-09 | C14: -0.16372 | E14: 22.17047781 | F14: 0.2457979037 | G14: 18687.01406 | H14: 2457.979037
A15: 1.3183e-09 | C15: -0.16372 | E15: 22.11323832 | F15: 0.2975632187 | G15: 18114.61919 | H15: 2975.632187
A16: 1.349e-09 | C16: -0.16372 | E16: 22.0344146 | F16: 0.3420298926 | G16: 17326.38194 | H16: 3420.298926
A17: 1.3804e-09 | C17: -0.16372 | E17: 21.93753541 | F17: 0.3680008894 | G17: 16357.59009 | H17: 3680.008894
A18: 1.4125e-09 | C18: -0.16372 | E18: 21.83509029 | F18: 0.3665050892 | G18: 15333.13884 | H18: 3665.050892
A19: 1.4454e-09 | C19: -0.16372 | E19: 21.74207407 | F19: 0.342512703 | G19: 14402.97662 | H19: 3425.12703
A20: 1.4791e-09 | C20: -0.16372 | E20: 21.66726937 | F20: 0.3002081466 | G20: 13654.92967 | H20: 3002.081466
A21: 1.5136e-09 | C21: -0.16372 | E21: 21.6121203 | F21: 0.2557287059 | G21: 13103.43898 | H21: 2557.287059
A22: 1.5488e-09 | C22: -0.16372 | E22: 21.57464744 | F22: 0.2152345064 | G22: 12728.71034 | H22: 2152.345064
A23: 1.5849e-09 | C23: -0.16372 | E23: 21.54402719 | F23: 0.1818052141 | G23: 12422.50788 | H23: 1818.052141
A24: 1.6218e-09 | C24: -0.16372 | E24: 21.52354288 | F24: 0.1548447743 | G24: 12217.66475 | H24: 1548.447743
A25: 1.6596e-09 | C25: -0.16372 | E25: 21.50030203 | F25: 0.1343311776 | G25: 11985.25622 | H25: 1343.311776
A26: 1.6982e-09 | C26: -0.16372 | E26: 21.48201949 | F26: 0.1172109308 | G26: 11802.43083 | H26: 1172.109308
A27: 1.7378e-09 | C27: -0.16372 | E27: 21.46860903 | F27: 0.105880908 | G27: 11668.32621 | H27: 1058.80908
A28: 1.7783e-09 | C28: -0.16372 | E28: 21.45632786 | F28: 0.09392078303 | G28: 11545.51456 | H28: 939.2078303
A29: 1.8197e-09 | C29: -0.16372 | E29: 21.44740277 | F29: 0.07962968289 | G29: 11456.26364 | H29: 796.2968289
A30: 1.8621e-09 | C30: -0.16372 | E30: 21.42872845 | F30: 0.07031368948 | G30: 11269.52044 | H30: 703.1368948
A31: 1.9055e-09 | C31: -0.16372 | E31: 21.41929601 | F31: 0.06036960918 | G31: 11175.19601 | H31: 603.6960918
A32: 1.9498e-09 | C32: -0.16372 | E32: 21.41239644 | F32: 0.0515151841 | G32: 11106.20039 | H32: 515.151841
A33: 1.9953e-09 | C33: -0.16372 | E33: 21.40960514 | F33: 0.04422145956 | G33: 11078.28733 | H33: 442.2145956
A34: 2.0417e-09 | C34: -0.16372 | E34: 21.40141066 | F34: 0.0388145873 | G34: 10996.34254 | H34: 388.145873
A35: 2.0893e-09 | C35: -0.16373 | E35: 21.3931863 | F35: 0.03661281569 | G35: 10914.09899 | H35: 366.1281569
A36: 2.138e-09 | C36: -0.16373 | E36: 21.38958862 | F36: 0.03181032268 | G36: 10878.12218 | H36: 318.1032268
A37: 2.1878e-09 | C37: -0.16373 | E37: 21.38930253 | F37: 0.02515253127 | G37: 10875.26122 | H37: 251.5253127
A38: 2.2387e-09 | C38: -0.16373 | E38: 21.38494288 | F38: 0.02305744809 | G38: 10831.66471 | H38: 230.5744809
A39: 2.2909e-09 | C39: -0.16373 | E39: 21.37974137 | F39: 0.01909651426 | G39: 10779.64969 | H39: 190.9651426
A40: 2.3442e-09 | C40: -0.16373 | E40: 21.37532139 | F40: 0.01584658432 | G40: 10735.44988 | H40: 158.4658432
A41: 2.3988e-09 | C41: -0.16373 | E41: 21.37500363 | F41: 0.01361769151 | G41: 10732.27223 | H41: 136.1769151
A42: 2.4547e-09 | C42: -0.16373 | E42: 21.36996725 | F42: 0.01203279974 | G42: 10681.90847 | H42: 120.3279974
A43: 2.5119e-09 | C43: -0.16373 | E43: 21.36819889 | F43: 0.01038571582 | G43: 10664.22482 | H43: 103.8571582
A44: 2.5704e-09 | C44: -0.16373 | E44: 21.36562918 | F44: 0.008059577587 | G44: 10638.52772 | H44: 80.59577587
A45: 2.6303e-09 | C45: -0.16373 | E45: 21.36786459 | F45: 0.007083572712 | G45: 10660.88185 | H45: 70.83572712
A46: 2.6915e-09 | C46: -0.16373 | E46: 21.3655041 | F46: 0.007749827084 | G46: 10637.27694 | H46: 77.49827084
A47: 2.7542e-09 | C47: -0.16373 | E47: 21.36659542 | F47: 0.006605467469 | G47: 10648.19017 | H47: 66.05467469
A48: 2.8184e-09 | C48: -0.16373 | E48: 21.36664531 | F48: 0.004017499546 | G48: 10648.68907 | H48: 40.17499546
A49: 2.884e-09 | C49: -0.16373 | E49: 21.36742224 | F49: 0.004703367925 | G49: 10656.4583 | H49: 47.03367925
A50: 2.9512e-09 | C50: -0.16373 | E50: 21.36829458 | F50: 0.003469988209 | G50: 10665.18175 | H50: 34.69988209
A51: 3.02e-09 | C51: -0.16374 | E51: 21.36233365 | F51: 0.003261612735 | G51: 10605.5724 | H51: 32.61612735
A52: 3.0903e-09 | C52: -0.16374 | E52: 21.36232068 | F52: 0.004342507742 | G52: 10605.44275 | H52: 43.42507742
A53: 3.1623e-09 | C53: -0.16374 | E53: 21.36842831 | F53: 0.002397615999 | G53: 10666.51906 | H53: 23.97615999
A54: 3.2359e-09 | C54: -0.16374 | E54: 21.36072706 | F54: 0.004200364454 | G54: 10589.50658 | H54: 42.00364454
A55: 3.3113e-09 | C55: -0.16374 | E55: 21.36120261 | F55: 0.005925423159 | G55: 10594.26209 | H55: 59.25423159
A56: 3.3884e-09 | C56: -0.16374 | E56: 21.36487521 | F56: 0.00439860194 | G56: 10630.98805 | H56: 43.9860194
A57: 3.4674e-09 | C57: -0.16374 | E57: 21.36306633 | F57: -0.0002016167619 | G57: 10612.89924 | H57: -2.016167619
A58: 3.5481e-09 | C58: -0.16374 | E58: 21.36264361 | F58: 0.004883329412 | G58: 10608.67207 | H58: 48.83329412
A59: 3.6308e-09 | C59: -0.16374 | E59: 21.35635436 | F59: 0.00272986816 | G59: 10545.77958 | H59: 27.2986816
A60: 3.7154e-09 | C60: -0.16374 | E60: 21.36002361 | F60: 0.003703426959 | G60: 10582.47204 | H60: 37.03426959
A61: 3.8019e-09 | C61: -0.16374 | E61: 21.36072786 | F61: -0.0005273111731 | G61: 10589.51451 | H61: -5.273111731
A62: 3.8905e-09 | C62: -0.16375 | E62: 21.35492166 | F62: 0.003086327744 | G62: 10531.45255 | H62: 30.86327744
A63: 3.9811e-09 | C63: -0.16375 | E63: 21.3591204 | F63: 0.007113982078 | G63: 10573.43998 | H63: 71.13982078
A64: 4.0738e-09 | C64: -0.16375 | E64: 21.35912931 | F64: 0.006816349741 | G64: 10573.52903 | H64: 68.16349741
A65: 4.1687e-09 | C65: -0.16375 | E65: 21.35664912 | F65: 0.00957349013 | G65: 10548.72712 | H65: 95.7349013
A66: 4.2658e-09 | C66: -0.16375 | E66: 21.35591089 | F66: 0.007757402452 | G66: 10541.34486 | H66: 77.57402452
A67: 4.3652e-09 | C67: -0.16375 | E67: 21.35922219 | F67: 0.01371891273 | G67: =(E67-$E$106)*10000 -> 10574.45783 | H67: =F67*10000 -> 137.1891273
A68: 4.4668e-09 | C68: -0.16375 | E68: 21.3555181 | F68: 0.01791342667 | G68: 10537.41698 | H68: 179.1342667
A69: 4.5709e-09 | C69: -0.16375 | E69: 21.35604666 | F69: 0.02425479402 | G69: 10542.70256 | H69: 242.5479402
A70: 4.6774e-09 | C70: -0.16375 | E70: 21.35569515 | F70: 0.02954651808 | G70: 10539.18741 | H70: 295.4651808
A71: 4.7863e-09 | C71: -0.16376 | E71: 21.3556755 | F71: 0.04238951756 | G71: 10538.99097 | H71: 423.8951756
A72: 4.8978e-09 | C72: -0.16376 | E72: 21.3500189 | F72: 0.05443829031 | G72: 10482.42494 | H72: 544.3829031
A73: 5.0119e-09 | C73: -0.16376 | E73: 21.35231483 | F73: 0.07501325481 | G73: 10505.38425 | H73: 750.1325481
A74: 5.1286e-09 | C74: -0.16376 | E74: 21.34770699 | F74: 0.100759045 | G74: 10459.30582 | H74: 1007.59045
A75: 5.2481e-09 | C75: -0.16376 | E75: 21.34059113 | F75: 0.1345197998 | G75: 10388.14729 | H75: 1345.197998
A76: 5.3703e-09 | C76: -0.16376 | E76: 21.32639511 | F76: 0.1734018506 | G76: 10246.18701 | H76: 1734.018506
A77: 5.4954e-09 | C77: -0.16376 | E77: 21.30380183 | F77: 0.2238757161 | G77: 10020.25425 | H77: 2238.757161
A78: 5.6234e-09 | C78: -0.16376 | E78: 21.26732714 | F78: 0.2883592424 | G78: 9655.507376 | H78: 2883.592424
A79: 5.7544e-09 | C79: -0.16377 | E79: 21.2091644 | F79: 0.3619361168 | G79: 9073.879912 | H79: 3619.361168
A80: 5.8884e-09 | C80: -0.16377 | E80: 21.12459721 | F80: 0.4354859689 | G80: 8228.208079 | H80: 4354.859689
A81: 6.0256e-09 | C81: -0.16377 | E81: 21.0026789 | F81: 0.49600149 | G81: 7009.024961 | H81: 4960.0149
A82: 6.166e-09 | C82: -0.16377 | E82: 20.85966342 | F82: 0.5219101622 | G82: 5578.870132 | H82: 5219.101622
A83: 6.3096e-09 | C83: -0.16377 | E83: 20.71092131 | F83: 0.5139271214 | G83: 4091.449008 | H83: 5139.271214
A84: 6.4565e-09 | C84: -0.16377 | E84: 20.58115033 | F84: 0.4639571095 | G84: 2793.739241 | H84: 4639.571095
A85: 6.6069e-09 | C85: -0.16378 | E85: 20.47889519 | F85: 0.3952379932 | G85: 1771.187842 | H85: 3952.379932
A86: 6.7608e-09 | C86: -0.16378 | E86: 20.40832445 | F86: 0.3184188496 | G86: 1065.480418 | H86: 3184.188496
A87: 6.9183e-09 | C87: -0.16378 | E87: 20.3635215 | F87: 0.2491813446 | G87: 617.4509917 | H87: 2491.813446
A88: 7.0795e-09 | C88: -0.16378 | E88: 20.3375067 | F88: 0.1950827942 | G88: 357.3029632 | H88: 1950.827942
A89: 7.2444e-09 | C89: -0.16378 | E89: 20.31943162 | F89: 0.1480943036 | G89: 176.5521763 | H89: 1480.943036
A90: 7.4131e-09 | C90: -0.16378 | E90: 20.31550849 | F90: 0.1107561122 | G90: 137.320842 | H90: 1107.561122
A91: 7.5858e-09 | C91: -0.16379 | E91: 20.30891644 | F91: 0.08529699277 | G91: 71.4003483 | H91: 852.9699277
A92: 7.7625e-09 | C92: -0.16379 | E92: 20.30067584 | F92: 0.06546805832 | G92: -11.00567618 | H92: 654.6805832
A93: 7.9433e-09 | C93: -0.16379 | E93: 20.30182825 | F93: 0.04655666342 | G93: 0.518441601 | H93: 465.5666342
A94: 8.1283e-09 | C94: -0.16379 | E94: 20.30354189 | F94: 0.0365431634 | G94: 17.65487422 | H94: 365.431634
A95: 8.3176e-09 | C95: -0.16379 | E95: 20.299495 | F95: 0.02793873285 | G95: -22.81409443 | H95: 279.3873285
A96: 8.5114e-09 | C96: -0.1638 | E96: 20.3013635 | F96: 0.02059691463 | G96: -4.129074484 | H96: 205.9691463
A97: 8.7096e-09 | C97: -0.1638 | E97: 20.29726178 | F97: 0.01599008574 | G97: -45.14624176 | H97: 159.9008574
A98: 8.9125e-09 | C98: -0.1638 | E98: 20.29999012 | F98: 0.01144229157 | G98: -17.86286669 | H98: 114.4229157
A99: 9.1201e-09 | C99: -0.1638 | E99: 20.3038781 | F99: 0.006879251247 | G99: 21.016914 | H99: 68.79251247
A100: 9.3325e-09 | C100: -0.16381 | E100: 20.29577721 | F100: 0.008392752952 | G100: -59.99197468 | H100: 83.92752952
A101: 9.5499e-09 | C101: -0.16381 | E101: 20.29789395 | F101: 0.002581202641 | G101: -38.82452686 | H101: 25.81202641
A102: 9.7724e-09 | C102: -0.16381 | E102: 20.2985139 | F102: 0.00435133316 | G102: -32.62506736 | H102: 43.5133316
A103: 1e-08 | C103: -0.16381 | E103: 20.30166544 | F103: -0.0001437314567 | G103: -1.109619183 | H103: -1.437314567
A104: 1.0233e-08 | C104: -0.16382 | E104: 20.3029983 | F104: 0.001091127537 | G104: 12.21893809 | H104: 10.91127537
A105: 1.0471e-08 | C105: -0.16382 | E105: 20.29585009 | F105: 0.00162229315 | G105: -59.26319174 | H105: 16.2229315
A106: 1.0715e-08 | C106: -0.16382 | E106: 20.30177641 | F106: 0.006387889927 | G106: 0 | H106: 63.87889927
A107: 1.0965e-08 | C107: -0.16382
A108: 1.122e-08 | C108: -0.16383
A109: 1.1482e-08 | C109: -0.16383
A110: 1.1749e-08 | C110: -0.16383
A111: 1.2023e-08 | C111: -0.16384
A112: 1.2303e-08 | C112: -0.16384
A113: 1.2589e-08 | C113: -0.16384
A114: 1.2882e-08 | C114: -0.16385
A115: 1.3183e-08 | C115: -0.16385
A116: 1.349e-08 | C116: -0.16385
A117: 1.3804e-08 | C117: -0.16386
A118: 1.4125e-08 | C118: -0.16386
A119: 1.4454e-08 | C119: -0.16386
A120: 1.4791e-08 | C120: -0.16387
A121: 1.5136e-08 | C121: -0.16387
A122: 1.5488e-08 | C122: -0.16387
A123: 1.5849e-08 | C123: -0.16388
A124: 1.6218e-08 | C124: -0.16388
A125: 1.6596e-08 | C125: -0.16389
A126: 1.6982e-08 | C126: -0.16389
A127: 1.7378e-08 | C127: -0.1639
A128: 1.7783e-08 | C128: -0.1639
A129: 1.8197e-08 | C129: -0.1639
A130: 1.8621e-08 | C130: -0.16391
A131: 1.9055e-08 | C131: -0.16391
A132: 1.9498e-08 | C132: -0.16392
A133: 1.9953e-08 | C133: -0.16392
A134: 2.0417e-08 | C134: -0.16393
A135: 2.0893e-08 | C135: -0.16393
A136: 2.138e-08 | C136: -0.16394
A137: 2.1878e-08 | C137: -0.16395
A138: 2.2387e-08 | C138: -0.16395
A139: 2.2909e-08 | C139: -0.16396
A140: 2.3442e-08 | C140: -0.16396
A141: 2.3988e-08 | C141: -0.16397
A142: 2.4547e-08 | C142: -0.16398
A143: 2.5119e-08 | C143: -0.16398
A144: 2.5704e-08 | C144: -0.16399
A145: 2.6303e-08 | C145: -0.16399
A146: 2.6915e-08 | C146: -0.164
A147: 2.7542e-08 | C147: -0.16401
A148: 2.8184e-08 | C148: -0.16401
A149: 2.884e-08 | C149: -0.16402
A150: 2.9512e-08 | C150: -0.16403
A151: 3.02e-08 | C151: -0.16404
A152: 3.0903e-08 | C152: -0.16404
A153: 3.1623e-08 | C153: -0.16405
A154: 3.2359e-08 | C154: -0.16406
A155: 3.3113e-08 | C155: -0.16407
A156: 3.3884e-08 | C156: -0.16408
A157: 3.4674e-08 | C157: -0.16409
A158: 3.5481e-08 | C158: -0.16409
A159: 3.6308e-08 | C159: -0.1641
A160: 3.7154e-08 | C160: -0.16411
A161: 3.8019e-08 | C161: -0.16412
A162: 3.8905e-08 | C162: -0.16413
A163: 3.9811e-08 | C163: -0.16414
A164: 4.0738e-08 | C164: -0.16415
A165: 4.1687e-08 | C165: -0.16416
A166: 4.2658e-08 | C166: -0.16417
A167: 4.3652e-08 | C167: -0.16418
A168: 4.4668e-08 | C168: -0.16419
A169: 4.5709e-08 | C169: -0.16421
A170: 4.6774e-08 | C170: -0.16422
A171: 4.7863e-08 | C171: -0.16423
A172: 4.8978e-08 | C172: -0.16424
A173: 5.0119e-08 | C173: -0.16425
A174: 5.1286e-08 | C174: -0.16426
A175: 5.2481e-08 | C175: -0.16428
A176: 5.3703e-08 | C176: -0.16429
A177: 5.4954e-08 | C177: -0.1643
A178: 5.6234e-08 | C178: -0.16432
A179: 5.7544e-08 | C179: -0.16433
A180: 5.8884e-08 | C180: -0.16435
A181: 6.0256e-08 | C181: -0.16436
A182: 6.166e-08 | C182: -0.16438
A183: 6.3096e-08 | C183: -0.16439
A184: 6.4565e-08 | C184: -0.16441
A185: 6.6069e-08 | C185: -0.16442
A186: 6.7608e-08 | C186: -0.16444
A187: 6.9183e-08 | C187: -0.16445
A188: 7.0795e-08 | C188: -0.16447
A189: 7.2444e-08 | C189: -0.16449
A190: 7.4131e-08 | C190: -0.16451
A191: 7.5858e-08 | C191: -0.16452
A192: 7.7625e-08 | C192: -0.16454
A193: 7.9433e-08 | C193: -0.16456
A194: 8.1283e-08 | C194: -0.16458
A195: 8.3176e-08 | C195: -0.1646
A196: 8.5114e-08 | C196: -0.16462
A197: 8.7096e-08 | C197: -0.16464
A198: 8.9125e-08 | C198: -0.16466
A199: 9.1201e-08 | C199: -0.16468
A200: 9.3325e-08 | C200: -0.1647
... 1003 more rows
